[Event "*** Titled Tuesday Blitz"]
[Site "Chess.com"]
[Date "2020.04.14"]
[Round "7"]
[White "Igrok3069"]
[Black "bangchess21"]
[Result "1-0"]
[WhiteElo "2577"]
[BlackElo "2670"]
[TimeControl "180+1"]
[EndTime "11:15:12 PDT"]
[Termination "Igrok3069 won by resignation"]

1. d4 {[%clk 0:03:00.9]} 1... Nf6 {[%clk 0:03:00.1]} 2. Nf3 {[%clk 0:03:00.2]}
2... e6 {[%clk 0:02:59.5]} 3. c4 {[%clk 0:02:59]} 3... Bb4+ {[%clk 0:02:59.6]}
4. Bd2 {[%clk 0:02:58.3]} 4... a5 {[%clk 0:02:59.1]} 5. g3 {[%clk 0:02:58.1]}
5... d6 {[%clk 0:02:59.5]} 6. Bg2 {[%clk 0:02:58.5]} 6... Qe7 {[%clk 0:03:00]}
7. O-O {[%clk 0:02:58.5]} 7... e5 {[%clk 0:03:00.6]} 8. Nc3 {[%clk 0:02:55.1]}
8... exd4 {[%clk 0:02:59.4]} 9. Nxd4 {[%clk 0:02:54.3]} 9... O-O {[%clk
0:02:59.3]} 10. Rc1 {[%clk 0:02:44.6]} 10... Bc5 {[%clk 0:02:56.6]} 11. Nb3
{[%clk 0:02:28.1]} 11... c6 {[%clk 0:02:44.7]} 12. Nxc5 {[%clk 0:02:18.5]} 12...
dxc5 {[%clk 0:02:45]} 13. Bf4 {[%clk 0:02:16.3]} 13... Rd8 {[%clk 0:02:42.7]}
14. Qc2 {[%clk 0:02:15.2]} 14... Be6 {[%clk 0:02:41.4]} 15. b3 {[%clk
0:02:13.5]} 15... Nbd7 {[%clk 0:02:26.1]} 16. Rfd1 {[%clk 0:02:07.8]} 16... Nf8
{[%clk 0:02:20.3]} 17. Na4 {[%clk 0:02:01]} 17... h6 {[%clk 0:02:12.5]} 18. Rxd8
{[%clk 0:01:53.9]} 18... Rxd8 {[%clk 0:02:10.3]} 19. Qc3 {[%clk 0:01:53.6]}
19... Ra8 {[%clk 0:02:09.5]} 20. Rd1 {[%clk 0:01:52]} 20... Ne8 {[%clk
0:02:01.3]} 21. Bc1 {[%clk 0:01:36.8]} 21... Nd7 {[%clk 0:01:55.3]} 22. Ba3
{[%clk 0:01:35]} 22... f6 {[%clk 0:01:55.8]} 23. Qe3 {[%clk 0:01:33.7]} 23...
Rd8 {[%clk 0:01:44.1]} 24. Rd3 {[%clk 0:01:26]} 24... Ne5 {[%clk 0:01:32.7]} 25.
Rd2 {[%clk 0:01:17.5]} 25... Ng4 {[%clk 0:01:17.1]} 26. Qc3 {[%clk 0:01:13.5]}
26... b5 {[%clk 0:01:10.9]} 27. cxb5 {[%clk 0:01:10.1]} 27... cxb5 {[%clk
0:01:10.6]} 28. Bxc5 {[%clk 0:00:57.7]} 28... Qc7 {[%clk 0:01:10.7]} 29. Rxd8
{[%clk 0:00:52.7]} 29... Qxd8 {[%clk 0:01:11.6]} 30. Nb2 {[%clk 0:00:52.2]}
30... b4 {[%clk 0:00:50.5]} 31. Qd4 {[%clk 0:00:51.7]} 31... Qc8 {[%clk
0:00:41.7]} 32. Nd3 {[%clk 0:00:51.1]} 32... Nc7 {[%clk 0:00:39.8]} 33. h3
{[%clk 0:00:45.8]} 33... Nb5 {[%clk 0:00:31.9]} 34. Qf4 {[%clk 0:00:44]} 34...
g5 {[%clk 0:00:27.8]} 35. Qe4 {[%clk 0:00:33.7]} 35... Nc3 {[%clk 0:00:15.3]}
36. Qg6+ {[%clk 0:00:32.1]} 36... Kh8 {[%clk 0:00:15.5]} 37. hxg4 {[%clk
0:00:30.9]} 37... Nxe2+ {[%clk 0:00:15.9]} 38. Kh2 {[%clk 0:00:30.3]} 38... Bxg4
{[%clk 0:00:15]} 39. Qxh6+ {[%clk 0:00:28.4]} 39... Kg8 {[%clk 0:00:14.6]} 40.
Bd5+ {[%clk 0:00:25]} 40... Be6 {[%clk 0:00:14.1]} 41. Qg6+ {[%clk 0:00:24.6]}
41... Kh8 {[%clk 0:00:14.2]} 42. Qxf6+ {[%clk 0:00:24.6]} 42... Kh7 {[%clk
0:00:15.1]} 43. Bxe6 {[%clk 0:00:21.9]} 43... Qe8 {[%clk 0:00:15.2]} 44. Bf5+
{[%clk 0:00:20.8]} 44... Kg8 {[%clk 0:00:15.5]} 45. Qg6+ {[%clk 0:00:19.8]}
45... Qxg6 {[%clk 0:00:15.3]} 46. Bxg6 {[%clk 0:00:19.9]} 46... Nc3 {[%clk
0:00:16.2]} 47. Bb6 {[%clk 0:00:19.6]} 47... a4 {[%clk 0:00:15]} 48. Nxb4 {[%clk
0:00:18.7]} 48... axb3 {[%clk 0:00:15.3]} 49. axb3 {[%clk 0:00:18.4]} 49... Nd1
{[%clk 0:00:16.2]} 50. Bd4 {[%clk 0:00:17.2]} 50... g4 {[%clk 0:00:15.3]} 51.
Nd3 {[%clk 0:00:16.9]} 51... Kf8 {[%clk 0:00:14.5]} 52. Bf5 {[%clk 0:00:16.9]}
52... Kf7 {[%clk 0:00:14.1]} 53. Bxg4 {[%clk 0:00:16.8]} 53... Kg6 {[%clk
0:00:15]} 54. Bxd1 {[%clk 0:00:16]} 54... Kg5 {[%clk 0:00:15.9]} 55. f3 {[%clk
0:00:15.4]} 55... Kf5 {[%clk 0:00:16.8]} 56. b4 {[%clk 0:00:15.8]} 56... Kg5
{[%clk 0:00:17.7]} 57. b5 {[%clk 0:00:16.2]} 57... Kf5 {[%clk 0:00:18.6]} 58. b6
{[%clk 0:00:16.4]} 58... Kg5 {[%clk 0:00:19.5]} 59. b7 {[%clk 0:00:16.3]} 59...
Kg6 {[%clk 0:00:20.4]} 60. b8=Q {[%clk 0:00:16.1]} 60... Kh5 {[%clk 0:00:20.7]}
61. Qe5+ {[%clk 0:00:15]} 61... Kg6 {[%clk 0:00:21.6]} 62. Qf6+ {[%clk 0:00:14]}
62... Kh5 {[%clk 0:00:22.5]} 63. Qh4+ {[%clk 0:00:11.2]} 63... Kg6 {[%clk
0:00:22]} 64. Qg4+ {[%clk 0:00:11]} 1-0

[Event "*** Titled Tuesday Blitz"]
[Site "Chess.com"]
[Date "2020.04.14"]
[Round "7"]
[White "abubakrtagelsir"]
[Black "Fy_Rakotomaharo"]
[Result "1-0"]
[WhiteElo "2292"]
[BlackElo "2528"]
[TimeControl "180+1"]
[EndTime "11:15:13 PDT"]
[Termination "abubakrtagelsir won on time"]

1. Nf3 {[%clk 0:03:00.9]} 1... Nf6 {[%clk 0:02:59.8]} 2. g3 {[%clk 0:03:01.8]}
2... g6 {[%clk 0:03:00.7]} 3. Bg2 {[%clk 0:02:55.1]} 3... Bg7 {[%clk 0:03:01.6]}
4. O-O {[%clk 0:02:53.9]} 4... O-O {[%clk 0:03:02.5]} 5. d3 {[%clk 0:02:53.8]}
5... d5 {[%clk 0:03:02.6]} 6. Nbd2 {[%clk 0:02:51.2]} 6... c5 {[%clk 0:03:03]}
7. e4 {[%clk 0:02:51.1]} 7... Nc6 {[%clk 0:03:03.2]} 8. c3 {[%clk 0:02:50.2]}
8... e5 {[%clk 0:03:02.1]} 9. Re1 {[%clk 0:02:48.2]} 9... h6 {[%clk 0:03:00.4]}
10. exd5 {[%clk 0:02:46.5]} 10... Nxd5 {[%clk 0:03:01.3]} 11. Nc4 {[%clk
0:02:45.8]} 11... Re8 {[%clk 0:03:00.7]} 12. a4 {[%clk 0:02:45.5]} 12... Bf5
{[%clk 0:02:48.8]} 13. Nh4 {[%clk 0:02:43.4]} 13... Be6 {[%clk 0:02:46.2]} 14.
a5 {[%clk 0:02:42.2]} 14... Qc7 {[%clk 0:02:42.3]} 15. Qa4 {[%clk 0:02:38]}
15... Rad8 {[%clk 0:02:39.5]} 16. Nf3 {[%clk 0:02:35.7]} 16... f5 {[%clk
0:02:15.4]} 17. Qa3 {[%clk 0:02:12.6]} 17... b5 {[%clk 0:02:00.8]} 18. axb6
{[%clk 0:02:08.5]} 18... axb6 {[%clk 0:02:00.3]} 19. Qa4 {[%clk 0:02:05.7]}
19... e4 {[%clk 0:01:21.2]} 20. dxe4 {[%clk 0:01:58.7]} 20... Nxc3 {[%clk
0:01:18.3]} 21. bxc3 {[%clk 0:01:52.6]} 21... Bxc3 {[%clk 0:01:17]} 22. Bxh6
{[%clk 0:01:51.9]} 22... Bxa1 {[%clk 0:01:03.3]} 23. Rxa1 {[%clk 0:01:43.9]}
23... fxe4 {[%clk 0:01:03]} 24. Ng5 {[%clk 0:01:34.8]} 24... Nd4 {[%clk
0:00:58.9]} 25. Ne3 {[%clk 0:01:10.3]} 25... Bb3 {[%clk 0:00:49.7]} 26. Qa6
{[%clk 0:01:02]} 26... Qc6 {[%clk 0:00:22.6]} 27. Qa7 {[%clk 0:00:27.1]} 27...
Rd7 {[%clk 0:00:21.5]} 28. Qa3 {[%clk 0:00:25.8]} 28... Rdd8 {[%clk 0:00:17.5]}
29. Qb2 {[%clk 0:00:22.5]} 29... Ra8 {[%clk 0:00:17.1]} 30. Rxa8 {[%clk
0:00:21.2]} 30... Qxa8 {[%clk 0:00:18]} 31. h4 {[%clk 0:00:17.4]} 31... Qa2
{[%clk 0:00:17.7]} 32. Qxa2 {[%clk 0:00:15.3]} 32... Bxa2 {[%clk 0:00:18.6]} 33.
Nxe4 {[%clk 0:00:13.8]} 33... Rb8 {[%clk 0:00:13]} 34. Bf4 {[%clk 0:00:13.1]}
34... Rc8 {[%clk 0:00:08.9]} 35. Bh3 {[%clk 0:00:12.5]} 35... Ra8 {[%clk
0:00:07.8]} 36. Bg2 {[%clk 0:00:12.1]} 36... Ra3 {[%clk 0:00:06.3]} 37. Bc7
{[%clk 0:00:10.3]} 37... Rb3 {[%clk 0:00:05.4]} 38. Kh2 {[%clk 0:00:08.7]} 38...
Rb2 {[%clk 0:00:05.1]} 39. Ng4 {[%clk 0:00:07.6]} 39... Be6 {[%clk 0:00:03.9]}
40. Ngf6+ {[%clk 0:00:06.8]} 40... Kf7 {[%clk 0:00:03.8]} 41. Be5 {[%clk
0:00:07.7]} 41... Bf5 {[%clk 0:00:03.2]} 42. Ng5+ {[%clk 0:00:07.7]} 42... Ke7
{[%clk 0:00:00.4]} 43. f4 {[%clk 0:00:06.2]} 1-0

[Event "*** Titled Tuesday Blitz"]
[Site "Chess.com"]
[Date "2020.04.14"]
[Round "7"]
[White "GigaQuparadze"]
[Black "Frolyanov_D"]
[Result "1-0"]
[WhiteElo "2922"]
[BlackElo "2774"]
[TimeControl "180+1"]
[EndTime "11:15:14 PDT"]
[Termination "GigaQuparadze won by resignation"]

1. e4 {[%clk 0:03:00.9]} 1... e5 {[%clk 0:02:57.2]} 2. Nf3 {[%clk 0:03:00.1]}
2... Nf6 {[%clk 0:02:57.7]} 3. Nxe5 {[%clk 0:02:59.6]} 3... d6 {[%clk
0:02:58.1]} 4. Nf3 {[%clk 0:02:59.4]} 4... Nxe4 {[%clk 0:02:58.3]} 5. d4 {[%clk
0:02:59.6]} 5... d5 {[%clk 0:02:58.6]} 6. Bd3 {[%clk 0:02:59.8]} 6... Bd6 {[%clk
0:02:59.2]} 7. O-O {[%clk 0:02:59.8]} 7... O-O {[%clk 0:02:59.7]} 8. c4 {[%clk
0:03:00]} 8... c6 {[%clk 0:03:00.1]} 9. Re1 {[%clk 0:02:59.9]} 9... Bf5 {[%clk
0:02:55.9]} 10. Qc2 {[%clk 0:02:52.3]} 10... Na6 {[%clk 0:02:54.6]} 11. a3
{[%clk 0:02:52.2]} 11... Re8 {[%clk 0:02:46.8]} 12. Nc3 {[%clk 0:02:51.5]} 12...
Nxc3 {[%clk 0:02:39.5]} 13. Bxf5 {[%clk 0:02:37.1]} 13... Rxe1+ {[%clk
0:02:35.4]} 14. Nxe1 {[%clk 0:02:38]} 14... Ne4 {[%clk 0:01:45.1]} 15. Bxe4
{[%clk 0:02:33.2]} 15... dxe4 {[%clk 0:01:42.1]} 16. Qxe4 {[%clk 0:02:33.6]}
16... Qd7 {[%clk 0:01:41.4]} 17. Nf3 {[%clk 0:02:33]} 17... Re8 {[%clk
0:01:41.2]} 18. Qc2 {[%clk 0:02:32.3]} 18... Nc7 {[%clk 0:01:39.9]} 19. Be3
{[%clk 0:02:31.1]} 19... Ne6 {[%clk 0:01:39.8]} 20. Qf5 {[%clk 0:02:28.9]} 20...
g6 {[%clk 0:01:34.8]} 21. Qf6 {[%clk 0:02:26.4]} 21... Be7 {[%clk 0:01:30.9]}
22. Qxf7+ {[%clk 0:02:26.3]} 22... Kxf7 {[%clk 0:01:26.1]} 23. Ne5+ {[%clk
0:02:27.2]} 23... Kg7 {[%clk 0:01:23.4]} 24. Nxd7 {[%clk 0:02:27.5]} 24... Rd8
{[%clk 0:01:23.9]} 25. Nc5 {[%clk 0:02:27.6]} 25... Nxc5 {[%clk 0:01:17.8]} 26.
dxc5 {[%clk 0:02:28.5]} 26... Bf6 {[%clk 0:01:16.8]} 27. Rb1 {[%clk 0:02:28.5]}
27... Rd3 {[%clk 0:01:16.2]} 28. Kf1 {[%clk 0:02:26]} 28... Rb3 {[%clk 0:01:15]}
29. Bc1 {[%clk 0:02:25.5]} 29... Bd4 {[%clk 0:01:14.2]} 30. Bd2 {[%clk
0:02:20.3]} 30... Rxb2 {[%clk 0:01:07.6]} 31. Rxb2 {[%clk 0:02:19.3]} 31... Bxb2
{[%clk 0:01:08.5]} 32. a4 {[%clk 0:02:19.9]} 32... Kf6 {[%clk 0:01:01.4]} 33.
Be3 {[%clk 0:02:19.8]} 33... h5 {[%clk 0:00:52.5]} 34. Ke2 {[%clk 0:02:19.5]}
34... Ke5 {[%clk 0:00:52.2]} 35. Kd3 {[%clk 0:02:19]} 35... Kf5 {[%clk 0:00:47]}
36. h3 {[%clk 0:02:15.1]} 36... Bf6 {[%clk 0:00:46.1]} 37. g3 {[%clk 0:02:14.8]}
37... g5 {[%clk 0:00:44.1]} 38. f3 {[%clk 0:02:10.1]} 38... g4 {[%clk
0:00:43.3]} 39. fxg4+ {[%clk 0:01:48.1]} 39... hxg4 {[%clk 0:00:44.2]} 40. hxg4+
{[%clk 0:01:48.5]} 40... Kxg4 {[%clk 0:00:44]} 41. Bf4 {[%clk 0:01:48.9]} 41...
Kf5 {[%clk 0:00:43.1]} 42. Bd6 {[%clk 0:01:47.6]} 42... Bg5 {[%clk 0:00:41.3]}
43. Kd4 {[%clk 0:01:45.7]} 43... Bc1 {[%clk 0:00:40.4]} 44. Kd3 {[%clk
0:01:36.3]} 44... Bh6 {[%clk 0:00:36.2]} 45. Ke2 {[%clk 0:01:32.4]} 45... Kg4
{[%clk 0:00:36.1]} 46. Bb8 {[%clk 0:01:32.3]} 46... a6 {[%clk 0:00:32.6]} 47.
Bd6 {[%clk 0:01:32.1]} 47... Bg5 {[%clk 0:00:31.1]} 48. Kd3 {[%clk 0:01:32.1]}
48... Kf5 {[%clk 0:00:30.8]} 49. Kd4 {[%clk 0:01:32.3]} 49... Bd2 {[%clk
0:00:28.9]} 50. Kd3 {[%clk 0:01:29.9]} 50... Bh6 {[%clk 0:00:25]} 51. Kc3 {[%clk
0:01:30.1]} 51... Kg4 {[%clk 0:00:24.7]} 52. Kd3 {[%clk 0:01:19.8]} 52... Kf5
{[%clk 0:00:24.3]} 53. Bc7 {[%clk 0:01:16.3]} 53... Bg7 {[%clk 0:00:23.1]} 54.
Ke3 {[%clk 0:01:15.5]} 54... Bh6+ {[%clk 0:00:20.4]} 55. Kf3 {[%clk 0:01:15.4]}
55... Bd2 {[%clk 0:00:19.4]} 56. g4+ {[%clk 0:01:15.7]} 56... Kg5 {[%clk
0:00:19.5]} 57. Bd8+ {[%clk 0:01:15.1]} 57... Kg6 {[%clk 0:00:19.8]} 58. Ke4
{[%clk 0:01:15.2]} 58... Bc3 {[%clk 0:00:19.9]} 59. g5 {[%clk 0:01:10.6]} 59...
Bb2 {[%clk 0:00:19.8]} 60. Kf4 {[%clk 0:01:10]} 60... Bc3 {[%clk 0:00:19.3]} 61.
Bf6 {[%clk 0:01:09.4]} 61... Bb4 {[%clk 0:00:19.3]} 62. Bd4 {[%clk 0:01:03.4]}
62... Ba5 {[%clk 0:00:19.3]} 63. Ke5 {[%clk 0:01:02.7]} 63... Kxg5 {[%clk
0:00:19.1]} 64. Ke6 {[%clk 0:01:03]} 64... Kf4 {[%clk 0:00:19.1]} 65. Kd7 {[%clk
0:01:03.3]} 65... Ke4 {[%clk 0:00:19.3]} 66. Bg1 {[%clk 0:01:03.1]} 66... Kd3
{[%clk 0:00:19.6]} 67. Kc8 {[%clk 0:01:03.3]} 67... Kxc4 {[%clk 0:00:19.3]} 68.
Kxb7 {[%clk 0:01:03]} 68... Kb3 {[%clk 0:00:18.9]} 69. Kxc6 {[%clk 0:01:02.4]}
69... Bb4 {[%clk 0:00:18.9]} 70. a5 {[%clk 0:01:01]} 70... Ka4 {[%clk
0:00:18.5]} 71. Kb6 {[%clk 0:01:00.1]} 71... Bxa5+ {[%clk 0:00:18.5]} 72. Kxa6
{[%clk 0:01:00.4]} 72... Bd8 {[%clk 0:00:16.7]} 73. c6 {[%clk 0:01:00.1]} 73...
Kb4 {[%clk 0:00:16.4]} 74. Bb6 {[%clk 0:00:58.3]} 1-0

[Event "*** Titled Tuesday Blitz"]
[Site "Chess.com"]
[Date "2020.04.14"]
[Round "7"]
[White "JulAnt"]
[Black "kaumandur01"]
[Result "0-1"]
[WhiteElo "2485"]
[BlackElo "2810"]
[TimeControl "180+1"]
[EndTime "11:15:15 PDT"]
[Termination "kaumandur01 won by resignation"]

1. e4 {[%clk 0:03:00.9]} 1... c5 {[%clk 0:02:59.7]} 2. Nf3 {[%clk 0:03:00.3]}
2... d6 {[%clk 0:02:59.9]} 3. d4 {[%clk 0:03:00.3]} 3... cxd4 {[%clk 0:03:00.8]}
4. Nxd4 {[%clk 0:02:59.1]} 4... Nf6 {[%clk 0:03:01.4]} 5. Nc3 {[%clk 0:02:57.9]}
5... a6 {[%clk 0:03:01.8]} 6. Bg5 {[%clk 0:02:57.4]} 6... e6 {[%clk 0:02:56.5]}
7. f4 {[%clk 0:02:55.2]} 7... Qc7 {[%clk 0:02:49.5]} 8. Qf3 {[%clk 0:02:54.6]}
8... Nbd7 {[%clk 0:02:46]} 9. O-O-O {[%clk 0:02:54.1]} 9... Be7 {[%clk
0:02:40.6]} 10. g4 {[%clk 0:02:53.8]} 10... b5 {[%clk 0:02:40]} 11. Bxf6 {[%clk
0:02:52.7]} 11... gxf6 {[%clk 0:02:37.6]} 12. Kb1 {[%clk 0:02:50.6]} 12... Bb7
{[%clk 0:02:37.3]} 13. Bd3 {[%clk 0:02:50]} 13... Nc5 {[%clk 0:02:33.6]} 14. f5
{[%clk 0:02:30.6]} 14... b4 {[%clk 0:02:26.5]} 15. Nce2 {[%clk 0:02:30.1]} 15...
e5 {[%clk 0:02:16.3]} 16. Nb3 {[%clk 0:02:29.6]} 16... Nxd3 {[%clk 0:02:09.1]}
17. Qxd3 {[%clk 0:02:28.2]} 17... a5 {[%clk 0:02:07.5]} 18. Ng3 {[%clk
0:02:16.7]} 18... Kf8 {[%clk 0:01:42.6]} 19. Nh5 {[%clk 0:02:11.2]} 19... a4
{[%clk 0:01:35]} 20. Nc1 {[%clk 0:02:10.6]} 20... Rc8 {[%clk 0:01:30.5]} 21. Rd2
{[%clk 0:02:04]} 21... Qc4 {[%clk 0:01:20.8]} 22. Qe3 {[%clk 0:01:51.3]} 22...
h6 {[%clk 0:01:20.8]} 23. Re1 {[%clk 0:01:49.9]} 23... a3 {[%clk 0:00:46]} 24.
b3 {[%clk 0:01:43]} 24... Qb5 {[%clk 0:00:46.1]} 25. Ng3 {[%clk 0:01:39.8]}
25... Rc3 {[%clk 0:00:44.5]} 26. Qe2 {[%clk 0:01:39.3]} 26... Qxe2 {[%clk
0:00:38.6]} 27. Rexe2 {[%clk 0:01:38.2]} 27... Rg8 {[%clk 0:00:29.4]} 28. Nd3
{[%clk 0:01:23.9]} 28... Rxg4 {[%clk 0:00:29.2]} 29. Nxb4 {[%clk 0:01:24.1]}
29... h5 {[%clk 0:00:29.6]} 30. Rd3 {[%clk 0:01:06.4]} 30... Rxd3 {[%clk
0:00:20.2]} 31. cxd3 {[%clk 0:01:07.3]} 31... h4 {[%clk 0:00:20.4]} 32. Nf1
{[%clk 0:01:04.5]} 32... Rg1 {[%clk 0:00:20.1]} 33. Re1 {[%clk 0:00:57.6]} 33...
Bd8 {[%clk 0:00:20.2]} 34. Nc2 {[%clk 0:00:52.1]} 34... Ba5 {[%clk 0:00:19.4]}
35. b4 {[%clk 0:00:51.5]} 35... Bb6 {[%clk 0:00:19.8]} 36. Nxa3 {[%clk
0:00:45.8]} 36... d5 {[%clk 0:00:19.2]} 37. Kc2 {[%clk 0:00:37.8]} 37... dxe4
{[%clk 0:00:18.6]} 38. dxe4 {[%clk 0:00:38.2]} 38... Bf2 {[%clk 0:00:19]} 39.
Rc1 {[%clk 0:00:25]} 39... Bxe4+ {[%clk 0:00:18.8]} 40. Kb3 {[%clk 0:00:25.4]}
40... Bd3 {[%clk 0:00:16.5]} 41. Rc8+ {[%clk 0:00:24.6]} 41... Ke7 {[%clk
0:00:17.1]} 42. Nd2 {[%clk 0:00:24.9]} 42... Bxf5 {[%clk 0:00:17.2]} 43. Rc7+
{[%clk 0:00:24.2]} 43... Ke6 {[%clk 0:00:17.3]} 44. Nac4 {[%clk 0:00:21.7]}
44... Bd4 {[%clk 0:00:16.3]} 45. b5 {[%clk 0:00:20.3]} 45... e4 {[%clk
0:00:15.2]} 46. Rc6+ {[%clk 0:00:17.7]} 46... Ke7 {[%clk 0:00:13.5]} 47. Rc7+
{[%clk 0:00:17.8]} 47... Kd8 {[%clk 0:00:13.2]} 48. Rxf7 {[%clk 0:00:17.1]}
48... e3 {[%clk 0:00:13.4]} 49. Nf3 {[%clk 0:00:16.4]} 49... Rb1+ {[%clk
0:00:12.5]} 50. Ka4 {[%clk 0:00:14.9]} 50... e2 {[%clk 0:00:10.2]} 51. Ncd2
{[%clk 0:00:09.4]} 51... Rb2 {[%clk 0:00:08.8]} 52. Nb3 {[%clk 0:00:09]} 52...
Bc3 {[%clk 0:00:08.8]} 53. b6 {[%clk 0:00:08.5]} 53... Bd3 {[%clk 0:00:07.9]}
54. a3 {[%clk 0:00:05.6]} 54... Be4 {[%clk 0:00:08.1]} 55. Ne1 {[%clk
0:00:04.9]} 55... Bxe1 {[%clk 0:00:07.4]} 56. b7 {[%clk 0:00:05.5]} 56... Bxb7
{[%clk 0:00:07.6]} 57. Rxb7 {[%clk 0:00:06.4]} 57... Bc3 {[%clk 0:00:08.3]} 58.
Rb8+ {[%clk 0:00:06.8]} 58... Kc7 {[%clk 0:00:08.3]} 59. Re8 {[%clk 0:00:07.1]}
59... e1=Q {[%clk 0:00:08.7]} 60. Rxe1 {[%clk 0:00:06.5]} 60... Bxe1 {[%clk
0:00:09.6]} 0-1

[Event "*** Titled Tuesday Blitz"]
[Site "Chess.com"]
[Date "2020.04.14"]
[Round "7"]
[White "SmirnovTimofey2000"]
[Black "Vincent_Vega95"]
[Result "0-1"]
[WhiteElo "2575"]
[BlackElo "2782"]
[TimeControl "180+1"]
[EndTime "11:15:19 PDT"]
[Termination "Vincent_Vega95 won by resignation"]

1. e4 {[%clk 0:03:00.9]} 1... c5 {[%clk 0:02:57.1]} 2. Nf3 {[%clk 0:03:00.7]}
2... d6 {[%clk 0:02:57.4]} 3. d4 {[%clk 0:02:59.4]} 3... cxd4 {[%clk 0:02:58.3]}
4. Nxd4 {[%clk 0:02:59.4]} 4... Nf6 {[%clk 0:02:59]} 5. Nc3 {[%clk 0:02:59.5]}
5... a6 {[%clk 0:02:59.1]} 6. Be2 {[%clk 0:02:59.5]} 6... e5 {[%clk 0:02:58.7]}
7. Nb3 {[%clk 0:02:59.5]} 7... Be7 {[%clk 0:02:58.8]} 8. Be3 {[%clk 0:02:59.2]}
8... O-O {[%clk 0:02:57.7]} 9. O-O {[%clk 0:02:43.3]} 9... Be6 {[%clk
0:02:57.1]} 10. Nd5 {[%clk 0:02:38]} 10... Nxd5 {[%clk 0:02:49.6]} 11. exd5
{[%clk 0:02:35.5]} 11... Bf5 {[%clk 0:02:49.9]} 12. c4 {[%clk 0:02:35.4]} 12...
Nd7 {[%clk 0:02:49]} 13. Qd2 {[%clk 0:02:26.6]} 13... a5 {[%clk 0:02:47.9]} 14.
Rac1 {[%clk 0:02:18.9]} 14... b6 {[%clk 0:02:43.3]} 15. Na1 {[%clk 0:02:18.3]}
15... Bg6 {[%clk 0:02:38.8]} 16. Nc2 {[%clk 0:02:16.2]} 16... Bxc2 {[%clk
0:02:37.7]} 17. Qxc2 {[%clk 0:02:14.2]} 17... Bg5 {[%clk 0:02:37.1]} 18. b3
{[%clk 0:02:08.8]} 18... f5 {[%clk 0:02:32]} 19. f4 {[%clk 0:01:56.2]} 19...
Bxf4 {[%clk 0:02:28.1]} 20. Bxf4 {[%clk 0:01:57.1]} 20... exf4 {[%clk
0:02:28.3]} 21. Rxf4 {[%clk 0:01:55.7]} 21... g6 {[%clk 0:02:28.9]} 22. Rff1
{[%clk 0:01:47.9]} 22... Qg5 {[%clk 0:02:27.5]} 23. Rce1 {[%clk 0:01:46.1]}
23... Rae8 {[%clk 0:02:26.9]} 24. Bf3 {[%clk 0:01:44.1]} 24... Re5 {[%clk
0:02:02.9]} 25. a3 {[%clk 0:01:40.4]} 25... Rfe8 {[%clk 0:02:02]} 26. Qf2 {[%clk
0:01:38.7]} 26... Nc5 {[%clk 0:01:58.3]} 27. Rxe5 {[%clk 0:01:37.2]} 27... Rxe5
{[%clk 0:01:56]} 28. b4 {[%clk 0:01:37.1]} 28... Nd7 {[%clk 0:01:50.9]} 29. bxa5
{[%clk 0:01:19.8]} 29... bxa5 {[%clk 0:01:48.9]} 30. Rb1 {[%clk 0:01:18.3]}
30... Nc5 {[%clk 0:01:17.6]} 31. h4 {[%clk 0:01:10.2]} 31... Qf4 {[%clk
0:01:10.2]} 32. h5 {[%clk 0:00:43.5]} 32... Kg7 {[%clk 0:01:08.7]} 33. hxg6
{[%clk 0:00:42.2]} 33... hxg6 {[%clk 0:01:08.9]} 34. g3 {[%clk 0:00:36.3]} 34...
Qg5 {[%clk 0:00:52.4]} 35. Kg2 {[%clk 0:00:28.3]} 35... Re3 {[%clk 0:00:50.9]}
36. Re1 {[%clk 0:00:23.1]} 36... f4 {[%clk 0:00:47.5]} 37. Rxe3 {[%clk
0:00:14.9]} 37... fxe3 {[%clk 0:00:47.2]} 38. Qe1 {[%clk 0:00:14.4]} 38... a4
{[%clk 0:00:45.7]} 39. Qc3+ {[%clk 0:00:13.9]} 39... Kf7 {[%clk 0:00:40]} 40.
Kf1 {[%clk 0:00:13.2]} 40... Qxg3 {[%clk 0:00:18.9]} 41. Qxe3 {[%clk 0:00:12.5]}
41... Kf6 {[%clk 0:00:16.4]} 42. Ke2 {[%clk 0:00:11.5]} 42... Qe5 {[%clk
0:00:16.7]} 43. Kd2 {[%clk 0:00:07.2]} 43... g5 {[%clk 0:00:16.9]} 44. Qxe5+
{[%clk 0:00:06.7]} 44... Kxe5 {[%clk 0:00:17.2]} 45. Bd1 {[%clk 0:00:07.6]}
45... Kd4 {[%clk 0:00:16.1]} 46. Be2 {[%clk 0:00:07.7]} 46... Nb3+ {[%clk
0:00:10.9]} 47. Kc2 {[%clk 0:00:07.5]} 47... Na5 {[%clk 0:00:11.1]} 48. Kc1
{[%clk 0:00:01.5]} 48... Nxc4 {[%clk 0:00:11.1]} 49. Bd1 {[%clk 0:00:02.4]}
49... Nxa3 {[%clk 0:00:11.5]} 50. Bxa4 {[%clk 0:00:02.4]} 50... Nc4 {[%clk
0:00:12.2]} 51. Bb3 {[%clk 0:00:01.4]} 51... Nb6 {[%clk 0:00:12.4]} 52. Kd1
{[%clk 0:00:01.8]} 52... Nxd5 {[%clk 0:00:13]} 53. Ke1 {[%clk 0:00:02.4]} 53...
Nf6 {[%clk 0:00:13.6]} 54. Kf2 {[%clk 0:00:02.6]} 54... g4 {[%clk 0:00:12.2]}
55. Kg3 {[%clk 0:00:02.4]} 55... Ke4 {[%clk 0:00:12.6]} 56. Bd1 {[%clk
0:00:01.4]} 56... d5 {[%clk 0:00:12.7]} 57. Bc2+ {[%clk 0:00:01.7]} 57... Ke3
{[%clk 0:00:12.2]} 58. Bb1 {[%clk 0:00:02]} 58... d4 {[%clk 0:00:12.6]} 59. Kh4
{[%clk 0:00:02.4]} 59... d3 {[%clk 0:00:13.2]} 60. Kg5 {[%clk 0:00:02.7]} 60...
d2 {[%clk 0:00:13.7]} 61. Bc2 {[%clk 0:00:02.3]} 61... g3 {[%clk 0:00:14.3]} 62.
Kxf6 {[%clk 0:00:02.6]} 62... g2 {[%clk 0:00:14.8]} 0-1